fUST/lending_fUST_20250610
["ID","MTS","AMOUNT","RATE_DAILY","PERIOD"]
[365261478,1749568249531,-153.0,0.00022544,2]
[365261480,1749568249542,-153.0,0.00022544,2]
[365261482,1749568249552,-153.0,0.00022544,2]
[365261484,1749568249563,-153.0,0.00022544,2]
[365261486,1749568249574,-153.0,0.00022544,2]
[365261488,1749568249583,-153.0,0.00022544,2]
[365261490,1749568249595,-153.0,0.00022544,2]
[365261492,1749568249605,-153.0,0.00022544,2]
[365261494,1749568249616,-153.0,0.00022544,2]
[365261496,1749568249626,-153.0,0.00022544,2]
[365261498,1749568249637,-153.0,0.00022544,2]
[365261500,1749568249648,-153.0,0.00022544,2]
[365261502,1749568249658,-153.0,0.00022544,2]
[365261504,1749568249668,-153.0,0.00022544,2]
[365261506,1749568249681,-153.0,0.00022544,2]
[365261508,1749568249692,-153.0,0.00022544,2]
[365261510,1749568249702,-153.0,0.00022544,2]
[365261512,1749568249715,-153.0,0.00022544,2]
[365261514,1749568249726,-153.0,0.00022544,2]
[365261516,1749568249735,-153.0,0.00022544,2]
[365261518,1749568249747,-153.0,0.00022544,2]
[365261519,1749568249758,-153.0,0.00022544,2]
[365261521,1749568249768,-153.0,0.00022544,2]
[365261524,1749568249778,-153.0,0.00022544,2]
[365261525,1749568249787,-153.0,0.00022544,2]
[365261528,1749568249798,-153.0,0.00022544,2]
[365261529,1749568249808,-153.0,0.00022544,2]
[365261532,1749568249818,-153.0,0.00022544,2]
[365261533,1749568249828,-153.0,0.00022544,2]
[365261536,1749568249839,-153.0,0.00022544,2]
[365261538,1749568249849,-153.0,0.00022544,2]
[365261540,1749568249860,-153.0,0.00022544,2]
[365261542,1749568249870,-153.0,0.00022544,2]
[365261544,1749568249880,-153.0,0.00022544,2]
[365261546,1749568249890,-153.0,0.00022544,2]
[365261548,1749568249900,-153.0,0.00022544,2]
[365261550,1749568249909,-153.0,0.00022544,2]
[365261551,1749568249918,-153.0,0.00022544,2]
[365261553,1749568249928,-153.0,0.00022544,2]
[365261556,1749568249938,-153.0,0.00022544,2]
[365261558,1749568249947,-153.0,0.00022544,2]
[365261559,1749568249957,-153.0,0.00022544,2]
[365261561,1749568249972,-153.0,0.00022544,2]
[365261563,1749568249981,-153.0,0.00022544,2]
[365261565,1749568249991,-153.0,0.00022544,2]
[365261568,1749568250000,-153.0,0.00022544,2]
[365261570,1749568250011,-153.0,0.00022544,2]
[365261572,1749568250020,-153.0,0.00022544,2]
[365261574,1749568250029,-153.0,0.00022544,2]
[365261576,1749568250039,-153.0,0.00022544,2]
[365261577,1749568250048,-153.0,0.00022544,2]
[365261580,1749568250058,-153.0,0.00022544,2]
[365261581,1749568250068,-153.0,0.00022544,2]
[365261583,1749568250077,-153.0,0.00022544,2]
[365261586,1749568250087,-153.0,0.00022544,2]
[365261587,1749568250097,-153.0,0.00022544,2]
[365261589,1749568250107,-153.0,0.00022544,2]
[365261591,1749568250116,-153.0,0.00022544,2]
[365261594,1749568250127,-153.0,0.00022544,2]
[365261596,1749568250136,-153.0,0.00022544,2]
[365261598,1749568250145,-153.0,0.00022544,2]
[365261599,1749568250154,-153.0,0.00022544,2]
[365261601,1749568250164,-153.0,0.00022544,2]
[365261603,1749568250173,-153.0,0.00022544,2]
[365261605,1749568250183,-153.0,0.00022544,2]
[365261607,1749568250192,-153.0,0.00022544,2]
[365261609,1749568250202,-153.0,0.00022544,2]
[365261611,1749568250214,-153.0,0.00022544,2]
[365261613,1749568250223,-153.0,0.00022544,2]
[365261615,1749568250233,-153.0,0.00022544,2]
[365261617,1749568250242,-153.0,0.00022544,2]
[365261619,1749568250252,-153.0,0.00022544,2]
[365261621,1749568250262,-153.0,0.00022544,2]
[365261623,1749568250271,-153.0,0.00022544,2]
[365261625,1749568250280,-153.0,0.00022544,2]
[365261627,1749568250290,-153.0,0.00022544,2]
[365261629,1749568250299,-153.0,0.00022544,2]
[365261631,1749568250308,-153.0,0.00022544,2]
[365261633,1749568250318,-153.0,0.00022544,2]
[365261635,1749568250328,-153.0,0.00022544,2]
[365261637,1749568250339,-153.0,0.00022544,2]
[365261639,1749568250348,-153.0,0.00022544,2]
[365261641,1749568250358,-151.0,0.000226,8]
[365261643,1749568250367,-596.48300622,0.00022624,7]
[365261645,1749568250376,-157.92258704,0.00022634,2]
[365261647,1749568250386,-464.82798071,0.00022682,2]
[365261649,1749568250395,-3000.0,0.000227,2]
[365261651,1749568250404,-1009.36,0.000227,7]
[365261653,1749568250414,-3000.0,0.0002271,2]
[365261655,1749568250423,-3000.0,0.0002272,2]
[365261657,1749568250433,-675.17843056,0.00022726,2]
[365261659,1749568250442,-596.48300622,0.00022728,7]
[365261661,1749568250451,-3000.0,0.0002273,2]
[365261663,1749568250464,-500.0,0.00022737,2]
[365261665,1749568250473,-871.99854809,0.00022737,2]
[365261667,1749568250483,-871.99854809,0.00022737,2]
[365261669,1749568250492,-500.0,0.00022737,2]
[365261671,1749568250502,-871.99854809,0.00022737,2]
[365261673,1749568250511,-871.99854809,0.00022737,2]
[365261675,1749568250520,-303.85275932,0.00022737,2]
[365261677,1749568250530,-871.99854809,0.00022737,2]
[365261679,1749568250539,-500.0,0.00022737,2]
[365261681,1749568250548,-500.0,0.00022737,2]
[365261683,1749568250558,-871.99854809,0.00022737,2]
[365261685,1749568250567,-871.99854809,0.00022737,2]
[365261687,1749568250576,-871.99854809,0.00022737,2]
[365261689,1749568250585,-871.99854809,0.00022737,2]
[365261691,1749568250596,-871.99854809,0.00022737,2]
[365261693,1749568250605,-871.99854809,0.00022737,2]
[365261695,1749568250615,-871.99854809,0.00022737,2]
[365261697,1749568250624,-270.0,0.00022739,4]
[365261699,1749568250633,-460.0,0.00022739,4]
[365261701,1749568250641,-460.0,0.00022739,4]
[365261703,1749568250651,-1135.43,0.00022739,4]
[365261705,1749568250660,-498.29,0.00022739,4]
[365261707,1749568250670,-460.0,0.00022739,4]
[365261709,1749568250683,-460.0,0.00022739,4]
[365261711,1749568250692,-460.0,0.00022739,4]
[365261713,1749568250701,-460.0,0.00022739,4]
[365261715,1749568250710,-380.0,0.00022739,4]
[365261717,1749568250721,-460.0,0.00022739,4]
[365261719,1749568250731,-647.1,0.00022739,4]
[365261721,1749568250739,-460.0,0.00022739,4]
[365261723,1749568250750,-380.0,0.00022739,4]
[365261725,1749568250760,-712.06,0.00022739,4]
[365261727,1749568250770,-483.01,0.00022739,4]
[365261729,1749568250779,-802.48,0.00022739,4]
[365261731,1749568250789,-460.0,0.00022739,4]
[365261733,1749568250798,-460.0,0.00022739,4]
[365261735,1749568250807,-460.0,0.00022739,4]
[365261737,1749568250816,-1069.59,0.00022739,4]
[365261739,1749568250826,-460.0,0.00022739,4]
[365261741,1749568250836,-1187.95,0.00022739,4]
[365261743,1749568250845,-718.86,0.00022739,4]
[365261745,1749568250854,-460.0,0.00022739,2]
[365261747,1749568250864,-1388.9,0.00022739,4]
[365261749,1749568250873,-1023.52,0.00022739,4]
[365261751,1749568250883,-460.0,0.00022739,4]
[365261753,1749568250892,-460.0,0.00022739,4]
[365261755,1749568250902,-1481.92,0.00022739,4]
[365261757,1749568250911,-460.0,0.00022739,4]
[365261759,1749568250920,-151.0,0.00022739,7]
[365261761,1749568250930,-928.77,0.00022739,4]
[365261763,1749568250939,-524.54,0.00022739,4]
[365261765,1749568250948,-799.58,0.00022739,4]
[365261767,1749568250957,-3000.0,0.0002274,2]
[365261769,1749568250968,-3000.0,0.0002275,2]
[365261771,1749568250977,-160.02203713,0.00022755,2]
[365261773,1749568250986,-5000.0,0.00022755,2]
[365261775,1749568250995,-232.38738173,0.00022755,2]
[365261777,1749568251004,-1688.0,0.00022755,2]
[365261779,1749568251013,-1500.0,0.00022755,2]
[365261781,1749568251022,-1500.0,0.00022755,2]
[365261783,1749568251032,-1500.0,0.00022755,2]
[365261785,1749568251041,-1500.0,0.00022755,2]
[365261787,1749568251051,-2500.0,0.00022755,2]
[365261789,1749568251060,-1500.0,0.00022755,2]
[365261791,1749568251069,-2500.0,0.00022755,2]
[365261793,1749568251079,-1500.0,0.00022755,2]
[365261795,1749568251088,-2500.0,0.00022755,2]
[365261797,1749568251097,-1500.0,0.00022755,2]
[365261799,1749568251107,-2323.54423715,0.00022755,2]
[365261800,1749568251116,-1500.0,0.00022755,2]
[365261802,1749568251125,-431.86117909,0.00022755,2]
[365261804,1749568251135,-1532.78696414,0.00022755,2]
[365261806,1749568251145,-207.4,0.00022755,2]
[365261808,1749568251154,-151.0,0.00022755,7]
[365261810,1749568251163,-3000.0,0.0002276,2]
[365261812,1749568251172,-3000.0,0.0002277,2]
[365261814,1749568251182,-3000.0,0.0002278,2]
[365261816,1749568251192,-500.0,0.00022788,2]
[365261818,1749568251201,-502.25479299,0.00022788,2]
[365261820,1749568251210,-501.88713235,0.00022788,2]
[365261822,1749568251221,-3000.0,0.0002279,2]
[365261824,1749568251231,-3000.0,0.000228,2]
[365261826,1749568251240,-151.0,0.000228,7]
[365261828,1749568251250,-1688.0,0.0002281,2]
[365261830,1749568251259,-3000.0,0.0002281,2]
[365261832,1749568251269,-168.19497638,0.0002281,2]
[365261834,1749568251279,-3000.0,0.0002282,2]
[365261836,1749568251288,-3000.0,0.0002283,2]
[365261839,1749568251298,-596.48300622,0.00022831,8]
[365261840,1749568251307,-562.74902061,0.00022835,2]
[365261842,1749568251316,-500.0,0.00022835,2]
[365261844,1749568251326,-3000.0,0.0002284,2]
[365261846,1749568251335,-3000.0,0.0002285,2]
[365261848,1749568251344,-3000.0,0.0002286,2]
[365261850,1749568251354,-3000.0,0.0002287,2]
[365261852,1749568251363,-500.0,0.00022873,2]
[365261854,1749568251372,-501.86450876,0.00022873,2]
[365261856,1749568251383,-500.0,0.00022873,2]
[365261858,1749568251392,-500.0,0.00022873,2]
[365261860,1749568251402,-3000.0,0.0002288,2]
[365261862,1749568251412,-3000.0,0.0002289,2]
[365261864,1749568251421,-45554.397719,0.000229,2]
[365261866,1749568251431,-23687.02885193,0.000229,2]
[365261868,1749568251440,-3000.0,0.000229,2]
[365261870,1749568251449,-92952.54,0.000229,7]
[365261872,1749568251459,-151.0,0.000229,7]
[365261874,1749568251470,-204.383544,0.000229,7]
[365261876,1749568251479,-204.383544,0.000229,7]
[365261878,1749568251489,-3000.0,0.0002291,2]
[365261880,1749568251498,-156.365003,0.0002291,7]
[365261882,1749568251507,-3000.0,0.0002292,2]
[365261884,1749568251517,-3000.0,0.0002293,2]
[365261886,1749568251526,-364.9974737,0.00022932,2]
[365261888,1749568251535,-364.9974737,0.00022932,2]
[365261890,1749568251544,-364.9974737,0.00022932,2]
[365261892,1749568251554,-364.9974737,0.00022932,2]
[365261894,1749568251563,-364.9974737,0.00022932,2]
[365261896,1749568251573,-735.9845796,0.00022932,2]
[365261898,1749568251582,-596.48300622,0.00022934,8]
[365261900,1749568251591,-3000.0,0.0002294,2]
[365261902,1749568251600,-3000.0,0.0002295,2]
[365261904,1749568251609,-43103.50224672,0.0002295,7]
[365261906,1749568251618,-43103.50224672,0.0002295,7]
[365261908,1749568251627,-3000.0,0.0002296,2]
[365261910,1749568251637,-4907.774291,0.0002297,2]
[365261912,1749568251647,-1611.35,0.00023,7]
[365261922,1749568251773,-151.0,0.00023,10]
[365261923,1749568251783,-202.26521121,0.00023,2]
[365261925,1749568251793,-460.0,0.00023013,4]
[365261927,1749568251803,-460.0,0.00023013,4]
[365261929,1749568251812,-151.0,0.00023013,7]
[365261931,1749568251822,-151.0,0.00023013,7]
[365261933,1749568251831,-1135.43,0.00023013,4]
[365261935,1749568251841,-498.29,0.00023013,4]
[365261937,1749568251850,-460.0,0.00023013,4]
[365261940,1749568251860,-411.54251527,0.00023013,4]
[365261942,1749568251869,-460.0,0.00023013,4]
[365261944,1749568251879,-460.0,0.00023013,4]
[365261945,1749568251888,-460.0,0.00023013,4]
[365261948,1749568251898,-647.1,0.00023013,4]
[365261949,1749568251907,-460.0,0.00023013,4]
[365261951,1749568251917,-712.06,0.00023013,4]
[365261954,1749568251927,-483.01,0.00023013,4]
[365261955,1749568251936,-802.48,0.00023013,4]
[365261957,1749568251945,-460.0,0.00023013,4]
[365261959,1749568251954,-460.0,0.00023013,4]
[365261961,1749568251963,-460.0,0.00023013,4]
[365261963,1749568251972,-1069.59,0.00023013,4]
[365261964,1749568251982,-460.0,0.00023013,4]
[365261965,1749568251991,-1187.95,0.00023013,4]
[365261966,1749568252001,-718.86,0.00023013,4]
[365261967,1749568252011,-460.0,0.00023013,2]
[365261968,1749568252021,-152.463357,0.00023013,7]
[365261969,1749568252030,-1388.9,0.00023013,4]
[365261970,1749568252040,-152.463357,0.00023013,7]
[365261971,1749568252049,-1023.52,0.00023013,4]
[365261972,1749568252059,-460.0,0.00023013,4]
[365261973,1749568252068,-460.0,0.00023013,4]
[365261974,1749568252078,-1481.92,0.00023013,4]
[365261975,1749568252088,-460.0,0.00023013,4]
[365261976,1749568252098,-928.77,0.00023013,4]
[365261977,1749568252107,-524.54,0.00023013,4]
[365261978,1749568252117,-799.58,0.00023013,4]
[365261979,1749568252126,-895.10013057,0.00023016,2]
[365261980,1749568252136,-2000.0,0.00023016,2]
[365261981,1749568252145,-596.48300622,0.00023038,8]
[365261982,1749568252154,-66323.93,0.000232,2]
[365261983,1749568252163,-150.184,0.00023223,2]
[365261984,1749568252174,-150.0,0.00023223,2]
[365261985,1749568252184,-156.305,0.00023223,2]
[365261986,1749568252193,-653.0,0.00023223,2]
[365261987,1749568252203,-2160.0,0.00023223,2]
[365261988,1749568252213,-405.0,0.00023223,2]
[365261989,1749568252223,-460.0,0.00023287,4]
[365261990,1749568252232,-460.0,0.00023287,4]
[365261992,1749568252242,-1135.43,0.00023287,4]
[365261993,1749568252251,-498.29,0.00023287,4]
[365261994,1749568252261,-460.0,0.00023287,4]
[365261995,1749568252271,-460.0,0.00023287,4]
[365261996,1749568252280,-460.0,0.00023287,4]
[365261997,1749568252290,-460.0,0.00023287,4]
[365261998,1749568252300,-647.1,0.00023287,4]
[365261999,1749568252310,-460.0,0.00023287,4]
[365262000,1749568252319,-712.06,0.00023287,4]
[365262001,1749568252329,-483.01,0.00023287,4]
[365262002,1749568252338,-802.48,0.00023287,4]
[365262003,1749568252347,-460.0,0.00023287,4]
[365262004,1749568252357,-460.0,0.00023287,4]
[365262005,1749568252367,-460.0,0.00023287,4]
[365262006,1749568252377,-1069.59,0.00023287,4]
[365262007,1749568252387,-460.0,0.00023287,4]
[365262008,1749568252396,-1187.95,0.00023287,4]
[365262009,1749568252406,-718.86,0.00023287,4]
[365262010,1749568252415,-460.0,0.00023287,2]
[365262011,1749568252425,-1388.9,0.00023287,4]
[365262012,1749568252435,-1023.52,0.00023287,4]
[365262013,1749568252444,-460.0,0.00023287,4]
[365262014,1749568252454,-483.84690168,0.00023287,4]
[365262015,1749568252463,-1481.92,0.00023287,4]
[365262016,1749568252473,-460.0,0.00023287,4]
[365262017,1749568252483,-928.77,0.00023287,4]
[365262018,1749568252493,-524.54,0.00023287,4]
[365262019,1749568252502,-799.58,0.00023287,4]
[365262020,1749568252512,-5000.0,0.00023303,2]
[365262021,1749568252522,-1000.0,0.00023421,2]
[365262022,1749568252532,-501.75429769,0.00023421,2]
[365262023,1749568252541,-500.85457552,0.00023421,2]
[365262024,1749568252551,-1433.89,0.000235,2]
[365262025,1749568252560,-3757.32,0.00023513,2]
[365262026,1749568252569,-151.0,0.00023513,7]
[365262028,1749568252579,-204.383544,0.00023513,7]
[365262030,1749568252588,-204.383544,0.00023513,7]
[365262032,1749568252598,-460.0,0.00023561,4]
[365262034,1749568252607,-460.0,0.00023561,4]
[365262036,1749568252616,-1135.43,0.00023561,4]
[365262038,1749568252626,-498.29,0.00023561,4]
[365262039,1749568252636,-460.0,0.00023561,4]
[365262040,1749568252645,-460.0,0.00023561,4]
[365262041,1749568252655,-197.46078022,0.00023561,4]
[365262043,1749568252665,-460.0,0.00023561,4]
[365262044,1749568252678,-647.1,0.00023561,4]
[365262045,1749568252688,-460.0,0.00023561,4]
[365262046,1749568252697,-712.06,0.00023561,4]
[365262047,1749568252707,-483.01,0.00023561,4]
[365262048,1749568252718,-802.48,0.00023561,4]
[365262049,1749568252727,-460.0,0.00023561,4]
[365262050,1749568252738,-460.0,0.00023561,4]
[365262051,1749568252748,-460.0,0.00023561,4]
[365262052,1749568252759,-1069.59,0.00023561,4]
[365262053,1749568252769,-460.0,0.00023561,4]
[365262054,1749568252778,-1187.95,0.00023561,4]
[365262055,1749568252787,-718.86,0.00023561,4]
[365262056,1749568252797,-460.0,0.00023561,2]
[365262057,1749568252806,-1388.9,0.00023561,4]
[365262058,1749568252816,-1023.52,0.00023561,4]
[365262059,1749568252826,-460.0,0.00023561,4]
[365262060,1749568252835,-1481.92,0.00023561,4]
[365262061,1749568252844,-460.0,0.00023561,4]
[365262062,1749568252853,-928.77,0.00023561,4]
[365262063,1749568252863,-524.54,0.00023561,4]
[365262064,1749568252872,-799.58,0.00023561,4]
[365262065,1749568252882,-2500.0,0.00023564,2]
[365262066,1749568252890,-37203.71694152,0.0002369,2]
[365262067,1749568252900,-363.0,0.00023699,2]
[365262068,1749568252909,-1539.087871,0.00023716,3]
[365262070,1749568252918,-587.0,0.0002375,2]
[365262071,1749568252927,-460.0,0.00023835,4]
[365262073,1749568252937,-460.0,0.00023835,4]
[365262075,1749568252946,-1135.43,0.00023835,4]
[365262077,1749568252956,-498.29,0.00023835,4]
[365262078,1749568252966,-460.0,0.00023835,4]
[365262080,1749568252975,-460.0,0.00023835,4]
[365262082,1749568252985,-460.0,0.00023835,4]
[365262084,1749568252994,-647.1,0.00023835,4]
[365262086,1749568253004,-460.0,0.00023835,4]
[365262088,1749568253013,-712.06,0.00023835,4]
[365262089,1749568253022,-483.01,0.00023835,4]
[365262091,1749568253031,-802.48,0.00023835,4]
[365262092,1749568253041,-587.04378957,0.00023835,4]
[365262093,1749568253050,-460.0,0.00023835,4]
[365262094,1749568253060,-460.0,0.00023835,4]
[365262095,1749568253070,-1069.59,0.00023835,4]
[365262096,1749568253080,-460.0,0.00023835,4]
[365262097,1749568253089,-1187.95,0.00023835,4]
[365262098,1749568253099,-718.86,0.00023835,4]
[365262099,1749568253108,-460.0,0.00023835,2]
[365262100,1749568253118,-1388.9,0.00023835,4]
[365262101,1749568253128,-1023.52,0.00023835,4]
[365262102,1749568253137,-460.0,0.00023835,4]
[365262103,1749568253147,-1481.92,0.00023835,4]
[365262104,1749568253156,-460.0,0.00023835,4]
[365262105,1749568253165,-928.77,0.00023835,4]
[365262106,1749568253175,-524.54,0.00023835,4]
[365262107,1749568253184,-799.58,0.00023835,4]
[365262108,1749568253193,-5000.0,0.00023851,2]
[365262109,1749568253203,-364.9974737,0.00023863,2]
[365262110,1749568253214,-151.0,0.0002389,7]
[365262111,1749568253223,-151.0,0.0002389,7]
[365262112,1749568253232,-152.463357,0.0002389,7]
[365262113,1749568253243,-152.463357,0.0002389,7]
[365262114,1749568253253,-1500.0,0.00023968,2]
[365262115,1749568253262,-1009.36,0.00024,7]
[365262116,1749568253272,-176.6779968,0.00024,2]
[365262117,1749568253282,-311.3791089,0.00024,2]
[365262118,1749568253293,-13917.0,0.00024,2]
[365262119,1749568253303,-2200.0,0.00024046,2]
[365262120,1749568253313,-44581.91043171,0.000241,7]
[365262121,1749568253668,-338.94080849,0.00021095,4]
[365262122,1749568253680,-121.05919151,0.00021095,4]
[365262123,1749568253689,-460.0,0.00021095,4]
[365262124,1749568253699,-460.0,0.00021369,4]
[365262125,1749568253708,-244.45,0.00021643,4]
[365262126,1749568253719,-109.29033031,0.00023141,8]
[365262129,1749568451460,1000.0,0.00024,120]
[365262141,1749568886478,-226.35468164,0.00018695,2]
[365262151,1749569102159,400.0,0.000201,20]
[365262152,1749569102189,3179.0,0.000201,20]
[365262153,1749569126981,438.46471584,0.00017536,2]
[365262154,1749569127267,297.040429,0.00013699,2]
[365262155,1749569127306,438.46471584,0.00017929,2]
[365262156,1749569129542,-226.35468164,0.00018334,2]
[365262160,1749569247653,437.85337298,0.00017908,2]
[365262161,1749569249839,-226.35468164,0.00018329,2]
[365262164,1749569314759,388.32535361,0.00024852,120]
[365262169,1749569367294,-226.35468164,0.0001809,2]
[365262200,1749569432282,-217.37365499,0.0001809,2]
[365262202,1749569432293,-443.72833663,0.00018487,2]
[365262204,1749569432304,-443.72833663,0.00018884,2]
[365262206,1749569432314,-514.64059273,0.000189,2]
[365262208,1749569432324,-443.72833663,0.00018989,2]
[365262209,1749569432334,-1153.81665609,0.00019,2]
[365262211,1749569432344,-205.7441269,0.00019178,2]
[365262213,1749569432354,-300.0,0.00019228,2]
[365262214,1749569432364,-300.0,0.00019228,2]
[365262216,1749569432374,-300.0,0.00019228,2]
[365262218,1749569432384,-480.78263166,0.00019228,2]
[365262226,1749569432553,-719.21736834,0.00019228,2]
[365262227,1749569432563,-300.0,0.00019229,2]
[365262228,1749569432573,-50000.0,0.00019229,2]
[365262229,1749569432582,-24900.0,0.0001923,2]
[365262230,1749569432592,-443.72833663,0.00019405,2]
[365262231,1749569432602,-443.72833663,0.00019581,2]
[365262232,1749569432612,-443.72833663,0.0001986,2]
[365262233,1749569432622,-3456.98334636,0.00019922,7]
[365262234,1749569432631,-239.661076,0.00019923,2]
[365262235,1749569432641,-321.94390946,0.00019971,2]
[365262236,1749569432651,-2957.04073319,0.0002,2]
[365262237,1749569432660,-700.33004926,0.000201,2]
[365262238,1749569432670,-700.33004905,0.000201,2]
[365262239,1749569432679,-16000.0,0.00020173,2]
[365262240,1749569432689,-800.0,0.00020185,2]
[365262241,1749569432699,-297.040429,0.00020187,2]
[365262242,1749569432709,-700.33004905,0.00020245,2]
[365262243,1749569432718,-443.72833663,0.00020255,2]
[365262244,1749569432731,-500.0,0.00020287,2]
[365262245,1749569432742,-443.72833663,0.00020373,2]
[365262246,1749569432751,-164.19942098,0.00020379,2]
[365262247,1749569432760,-700.33004905,0.00020417,3]
[365262248,1749569432770,-160.0,0.00020527,2]
[365262249,1749569432779,-700.33004905,0.0002059,3]
[365262250,1749569432788,-1128.75,0.000206,2]
[365262251,1749569432797,-426.81926375,0.00020609,2]
[365262252,1749569432806,-161.18398629,0.00020609,2]
[365262253,1749569432815,-500.0,0.00020609,2]
[365262255,1749569432825,-500.0,0.00020609,2]
[365262256,1749569432834,-500.0,0.00020609,2]
[365262257,1749569432843,-500.0,0.00020609,2]
[365262258,1749569432852,-500.0,0.00020609,2]
[365262259,1749569432861,-500.0,0.00020609,2]
[365262260,1749569432871,-172.7889259,0.00020609,2]
[365262261,1749569432879,-500.0,0.00020609,2]
[365262262,1749569432888,-500.0,0.00020609,2]
[365262263,1749569432897,-500.0,0.00020609,2]
[365262264,1749569432906,-500.0,0.00020609,2]
[365262265,1749569432915,-500.0,0.00020609,2]
[365262266,1749569432924,-500.0,0.00020609,2]
[365262267,1749569432934,-500.0,0.00020609,2]
[365262268,1749569432943,-500.0,0.00020609,2]
[365262269,1749569432954,-500.0,0.00020609,2]
[365262270,1749569432963,-500.0,0.00020609,2]
[365262271,1749569432974,-500.0,0.00020609,2]
[365262272,1749569432983,-500.0,0.00020609,2]
[365262273,1749569432992,-500.0,0.00020609,2]
[365262274,1749569433002,-500.0,0.00020609,2]
[365262275,1749569433012,-500.0,0.00020609,2]
[365262276,1749569433022,-915.25,0.0002061,2]
[365262277,1749569433033,-443.72833663,0.00020622,2]
[365262278,1749569433043,-700.33004905,0.00020762,3]
[365262279,1749569433056,-300.39179917,0.00020922,2]
[365262280,1749569433067,-700.33004905,0.00020934,4]
[365262281,1749569433079,-500.0,0.00020954,2]
[365262282,1749569433089,-420.0,0.00020954,2]
[365262283,1749569433098,-332.0,0.00020954,2]
[365262285,1749569433111,-420.0,0.00020954,2]
[365262287,1749569433121,-420.0,0.00020955,2]
[365262289,1749569433131,-2235.85117308,0.00020995,2]
[365262291,1749569433141,-443.72833663,0.00021039,2]
[365262293,1749569433152,-1680.0,0.00021055,2]
[365262295,1749569433161,-451.61465739,0.00021073,2]
[365262297,1749569433171,-502.45172187,0.00021073,2]
[365262298,1749569433182,-500.0,0.00021073,2]
[365262300,1749569433192,-500.0,0.00021073,2]
[365262302,1749569433202,-500.0,0.00021073,2]
[365262304,1749569433211,-500.0,0.00021073,2]
[365262307,1749569433221,-501.96114314,0.00021073,2]
[365262308,1749569433234,-317.68027213,0.00021073,2]
[365262311,1749569433244,-500.0,0.00021073,2]
[365262312,1749569433255,-500.0,0.00021073,2]
[365262315,1749569433265,-1668.31,0.00021085,3]
[365262316,1749569433275,-834.15,0.00021085,3]
[365262319,1749569433285,-417.08,0.00021085,3]
[365262321,1749569433295,-208.54,0.00021085,3]
[365262322,1749569433305,-625.62,0.00021085,3]
[365262325,1749569433315,-155.0,0.00021094,2]
[365262327,1749569433324,-160.0,0.00021094,2]
[365262329,1749569433333,-440.0,0.00021095,4]
[365262331,1749569433343,-440.0,0.00021095,4]
[365262332,1749569433353,-440.0,0.00021095,4]
[365262334,1749569433363,-191.11845035,0.00021095,4]
[365262337,1749569433373,-440.0,0.00021095,4]
[365262338,1749569433383,-440.0,0.00021095,4]
[365262339,1749569433393,-400.0,0.00021095,4]
[365262340,1749569433403,-554.1186211,0.00021095,4]
[365262341,1749569433416,-430.0,0.00021095,4]
[365262342,1749569433426,-400.0,0.00021095,4]
[365262343,1749569433436,-440.0,0.00021095,4]
[365262344,1749569433446,-440.0,0.00021095,4]